bitfinex/quotes_SOLUSD_20230101
["timestamp","ask_amount","ask_price","bid_price","bid_amount"]
[1672562799616,23.0875,9.7524,9.7472,40.0]
[1672562799821,23.0875,9.7524,9.7475,40.0]
[1672562800044,23.0875,9.7524,9.7478,40.0]
[1672562800253,23.0875,9.7524,9.748,307.0]
[1672562800448,23.0875,9.7524,9.7481,40.0]
[1672562800659,23.921,9.7545,9.7483,347.0]
[1672562801394,20.0,9.7544,9.7483,347.0]
[1672562801810,20.0,9.7544,9.7483,40.0]
[1672562803195,20.0,9.7544,9.7486,40.0]
[1672562803387,20.0,9.7544,9.7488,307.0]
[1672562803609,20.0,9.7544,9.7489,40.0]
[1672562817488,20.0,9.7544,9.7492,40.0]
[1672562822328,24.5304,9.7568,9.7492,40.0]
[1672562822329,76.94,9.7579,9.7494,307.0]
[1672562822667,100.5104,9.7613,9.7497,40.0]
[1672562822864,100.5104,9.7613,9.75,40.0]
[1672562823173,100.5104,9.7613,9.7503,40.0]
[1672562823361,100.5104,9.7613,9.7505,307.0]
[1672562823577,100.5104,9.7613,9.7507,307.0]
[1672562823781,100.5104,9.7613,9.7509,307.0]
[1672562823993,24.3453,9.7612,9.7512,40.0]
[1672562824204,76.92,9.7611,9.7514,307.0]
[1672562824418,76.92,9.7611,9.7515,40.0]
[1672562824637,76.92,9.7611,9.7517,40.0]
[1672562824850,76.92,9.7611,9.7519,307.0]
[1672562825064,76.92,9.7611,9.752,40.0]
[1672562825256,76.92,9.7611,9.7522,40.0]
[1672562825892,76.92,9.7611,9.7523,24.6838]
[1672562826514,76.92,9.7611,9.7524,23.2398]
[1672562827146,76.92,9.7611,9.7526,40.0]
[1672562827904,76.92,9.7611,9.7527,23.2398]
[1672562828528,76.92,9.7611,9.7528,23.2398]
[1672562829144,76.92,9.7611,9.7529,23.2398]
[1672562829780,76.92,9.7611,9.753,23.6898]
[1672562830441,76.92,9.7611,9.7531,23.6898]
[1672562831157,76.92,9.7611,9.7526,40.0]
[1672562831158,76.92,9.7611,9.7532,23.6898]
[1672562831901,76.92,9.7611,9.7534,40.0]
[1672562832327,76.92,9.7611,9.7535,307.0]
[1672562832520,76.92,9.7611,9.7536,40.0]
[1672562833363,76.92,9.7611,9.7536,347.0]
[1672562834420,76.92,9.7611,9.7536,40.0]
[1672562853047,76.92,9.7611,9.7535,23.8309]
[1672562854911,76.92,9.7611,9.7536,40.0]
[1672562858602,76.92,9.7611,9.7535,23.8309]
[1672562879099,40.0,9.761,9.7535,23.8309]
[1672562879308,40.0,9.7608,9.7535,23.8309]
[1672562879538,76.92,9.7607,9.7535,23.8309]
[1672562879750,40.0,9.7606,9.7535,23.8309]
[1672562879958,40.0,9.7604,9.7535,23.8309]
[1672562880170,76.93,9.7603,9.7535,23.8309]
[1672562880358,76.92,9.7611,9.7535,23.8309]
[1672562905196,76.91,9.7621,9.7535,23.8309]
[1672562905374,76.91,9.7621,9.7536,22.7155]
[1672562905924,76.91,9.7621,9.7537,22.9408]
[1672562906443,76.91,9.7621,9.7538,22.9408]
[1672562906977,76.91,9.7621,9.7534,307.0]
[1672562906978,76.91,9.7621,9.7539,22.9408]
[1672562907587,76.91,9.7621,9.754,22.9408]
[1672562908018,76.91,9.7622,9.754,22.9408]
[1672562908229,20.0,9.7621,9.7541,22.9408]
[1672562908546,76.91,9.762,9.7541,22.9408]
[1672562908761,76.91,9.762,9.7542,22.9408]
[1672562909267,76.91,9.762,9.7543,22.9998]
[1672562966906,40.0,9.7619,9.7543,22.9998]
[1672562967116,76.91,9.7618,9.7543,22.9998]
[1672562967348,76.91,9.762,9.7543,22.9998]
[1672562983224,20.0,9.7621,9.7543,22.9998]
[1672562983225,20.0,9.7621,9.7545,347.0]
[1672562983435,20.0,9.7622,9.7548,40.0]
[1672562983627,20.0,9.7622,9.7551,40.0]
[1672562983838,20.0,9.7622,9.7553,307.0]
[1672562984063,20.0,9.7622,9.7555,307.0]
[1672562984282,20.0,9.7622,9.7558,40.0]
[1672562985755,20.0,9.7622,9.7558,347.0]
[1672562986682,20.0,9.7622,9.7558,40.0]
[1672562986892,20.0,9.7622,9.7558,347.0]
[1672562989217,20.0,9.7622,9.7561,40.0]
[1672562994456,20.0,9.7622,9.7564,40.0]
[1672562994677,20.0,9.7622,9.7565,307.0]
[1672562994889,20.0,9.7622,9.7566,40.0]
[1672562995294,20.0,9.7622,9.7568,347.0]
[1672562995520,20.0,9.7622,9.7571,40.0]
[1672562997297,20.0,9.7622,9.7574,40.0]
[1672562998348,20.0,9.7622,9.7576,40.0]
[1672563001827,20.0,9.7622,9.7578,307.0]
[1672563002886,20.0,9.7622,9.7576,40.0]
[1672563003612,20.0,9.7622,9.7573,307.0]
[1672563004034,20.0,9.7622,9.7563,307.0]
[1672563008573,20.0,9.7622,9.7565,307.0]
[1672563008785,20.0,9.7622,9.7568,40.0]
[1672563008999,20.0,9.7622,9.7571,40.0]
[1672563009211,20.0,9.7622,9.7573,307.0]
[1672563009414,20.0,9.7622,9.7575,347.0]
[1672563009615,20.0,9.7622,9.7578,40.0]
[1672563010458,20.0,9.7622,9.7579,307.0]
[1672563010670,20.0,9.7622,9.758,40.0]
[1672563011406,20.0,9.7626,9.758,40.0]
[1672563011614,20.0,9.7626,9.7581,307.0]
[1672563012668,20.0,9.7626,9.758,347.0]
[1672563013830,20.0,9.7626,9.7565,307.0]
[1672563014266,96.91,9.7626,9.7565,307.0]
[1672563015076,20.0,9.7626,9.7548,23.7587]
[1672563017184,20.0,9.7626,9.755,307.0]
[1672563017395,20.0,9.7626,9.7552,307.0]
[1672563017618,20.0,9.7626,9.7554,307.0]
[1672563018568,20.0,9.7626,9.755,307.0]
[1672563018764,20.0,9.7626,9.7552,307.0]
[1672563018977,20.0,9.7626,9.7554,307.0]
[1672563020017,20.0,9.7626,9.7556,307.0]
[1672563021068,20.0,9.7626,9.755,307.0]
[1672563021278,20.0,9.7626,9.7552,307.0]
[1672563021489,20.0,9.7626,9.7554,307.0]
[1672563021705,20.0,9.7626,9.7556,307.0]
[1672563022653,20.0,9.7626,9.755,307.0]
[1672563022858,20.0,9.7626,9.7552,307.0]
[1672563023183,20.0,9.7626,9.7554,307.0]
[1672563024034,20.0,9.7626,9.755,307.0]
[1672563024345,20.0,9.7626,9.7552,307.0]
[1672563025395,20.0,9.7626,9.755,307.0]
[1672563025606,20.0,9.7626,9.7552,307.0]
[1672563025813,20.0,9.7626,9.7554,307.0]
[1672563026975,20.0,9.7626,9.755,307.0]
[1672563027184,20.0,9.7626,9.7552,307.0]
[1672563027502,20.0,9.7626,9.7554,307.0]
[1672563028654,20.0,9.7626,9.7551,40.0]
[1672563028971,20.0,9.7626,9.7554,40.0]
[1672563029184,20.0,9.7626,9.7556,40.0]
[1672563034321,20.0,9.7626,9.7555,307.0]
[1672563035055,20.0,9.7626,9.7556,307.0]
[1672563035993,20.0,9.7626,9.7539,307.0]
[1672563035994,40.0,9.7625,9.7539,307.0]
[1672563036238,96.91,9.7624,9.7537,307.0]
[1672563036422,162.06666024,9.7624,9.7537,307.0]
[1672563036751,105.15666024,9.7623,9.7537,307.0]
[1672563036951,40.0,9.7621,9.7537,307.0]
[1672563037156,76.91,9.762,9.7537,307.0]
[1672563037366,40.0,9.7619,9.7537,307.0]
[1672563037577,76.91,9.7618,9.7537,307.0]
[1672563037792,40.0,9.7617,9.7537,307.0]
[1672563038015,40.0,9.7615,9.7537,307.0]
[1672563038326,76.92,9.7614,9.7537,307.0]
[1672563038539,40.0,9.7613,9.7537,307.0]
[1672563038747,76.92,9.7612,9.7537,307.0]
[1672563039695,76.92,9.7614,9.7537,307.0]
[1672563041478,76.92,9.7616,9.7537,307.0]
[1672563047886,40.0,9.7615,9.7532,23.1397]
[1672563048125,76.92,9.7614,9.7532,23.1397]
[1672563048311,40.0,9.7613,9.7532,23.1397]
[1672563048527,40.0,9.7611,9.7532,23.1397]
[1672563048831,40.0,9.7609,9.7532,23.1397]
[1672563049459,40.0,9.7607,9.7532,23.1397]
[1672563049677,40.0,9.7607,9.7533,23.1397]
[1672563049882,40.0,9.7605,9.7533,23.1397]
[1672563050515,152.75479248,9.7597,9.7536,111.80709555]
[1672563050720,76.93,9.7596,9.7536,111.80709555]
[1672563051040,125.15666024,9.7595,9.7536,111.80709555]
[1672563051256,116.93,9.7594,9.7536,111.80709555]
[1672563051465,40.0,9.7592,9.7536,111.80709555]
[1672563051676,40.0,9.759,9.7536,111.80709555]
[1672563051893,96.94,9.7589,9.7536,111.80709555]
[1672563052099,40.0,9.7588,9.7536,111.80709555]
[1672563052316,40.0,9.7586,9.7426,40.0]
[1672563052521,264.0,9.758,9.7428,307.0]
[1672563052717,136.94,9.7579,9.743,307.0]
[1672563052924,40.0,9.7578,9.7433,40.0]
[1672563053263,40.0,9.7576,9.7435,307.0]
[1672563053449,40.0,9.7576,9.7433,40.0]
[1672563053450,96.95,9.7575,9.7437,307.0]
[1672563053666,96.95,9.7575,9.7436,77.06]
[1672563053667,40.0,9.7574,9.7439,307.0]
[1672563053876,40.0,9.7572,9.7441,307.0]
[1672563054085,96.95,9.7571,9.7443,307.0]
[1672563054293,40.0,9.757,9.7443,307.0]
[1672563054610,40.0,9.7568,9.7443,307.0]
[1672563054836,40.0,9.7566,9.7443,307.0]
[1672563055152,40.0,9.7564,9.7445,307.0]
[1672563055355,40.0,9.7562,9.7445,307.0]
[1672563055672,40.0,9.756,9.7445,307.0]
[1672563055891,40.0,9.7558,9.7445,307.0]
[1672563056078,96.96,9.7557,9.7445,307.0]
[1672563056289,40.0,9.7556,9.7445,307.0]
[1672563056497,40.0,9.7556,9.7443,23.6473]
[1672563056498,96.96,9.7555,9.7446,77.05]
[1672563056723,40.0,9.7554,9.7444,77.05]
[1672563056923,40.0,9.7552,9.7444,77.05]
[1672563057124,96.97,9.7551,9.7444,101.5559]
[1672563057338,40.0,9.755,9.7445,307.0]
[1672563057549,40.0,9.755,9.7447,307.0]
[1672563057550,40.0,9.7548,9.7447,307.0]
[1672563057779,96.97,9.7547,9.7447,307.0]
[1672563058092,20.0,9.7547,9.7448,40.0]
[1672563058309,22.8459,9.7546,9.745,347.0]
[1672563058508,20.0,9.7545,9.7452,307.0]
[1672563058702,20.0,9.7545,9.7454,307.0]
[1672563058911,22.8459,9.7544,9.7456,307.0]
[1672563059143,20.0,9.7543,9.7458,307.0]
[1672563060190,20.0,9.7543,9.7452,307.0]
[1672563060397,20.0,9.7543,9.7454,307.0]
[1672563060814,24.6268,9.7542,9.7454,307.0]
[1672563061024,20.0,9.7541,9.7454,307.0]
[1672563061445,44.6268,9.7541,9.745,40.0]
[1672563061962,24.6268,9.754,9.745,40.0]
[1672563062176,24.6268,9.754,9.7449,22.9168]
[1672563062399,20.0,9.7539,9.7449,22.9168]
[1672563062602,44.6268,9.7539,9.7449,22.9168]
[1672563063231,22.9159,9.7538,9.7449,22.9168]
[1672563063578,20.0,9.7537,9.7449,22.9168]
[1672563063756,42.9159,9.7537,9.745,24.9408]
[1672563064394,42.9159,9.7537,9.7451,24.9408]
[1672563065345,42.9159,9.7537,9.7452,24.9408]
[1672563065963,76.98,9.7536,9.7452,24.9408]
[1672563066181,40.0,9.7534,9.7452,24.9408]
[1672563066392,96.98,9.7533,9.7452,24.9408]
[1672563066691,40.0,9.7532,9.7452,24.9408]
[1672563066931,40.0,9.753,9.7452,24.9408]
[1672563067122,96.98,9.7529,9.7452,24.9408]
[1672563067340,40.0,9.7528,9.7452,24.9408]
[1672563067541,96.99,9.7527,9.7452,24.9408]
[1672563068821,40.0,9.7526,9.7452,24.9408]
[1672563069020,96.99,9.7525,9.7452,24.9408]
[1672563069220,76.99,9.7525,9.7452,24.9408]
[1672563069431,20.0,9.7524,9.7452,24.9408]
[1672563069647,40.0,9.7522,9.7452,24.9408]
[1672563069853,96.99,9.7521,9.7452,24.9408]
[1672563070059,76.99,9.7521,9.7452,24.9408]
[1672563070282,20.0,9.752,9.7452,24.9408]
[1672563070494,76.99,9.7519,9.7453,23.7592]
[1672563091611,76.87762039,9.7519,9.7453,23.7592]
[1672563096347,130.74255924,9.7518,9.7453,23.7592]
[1672563096554,40.0,9.7516,9.7453,23.7592]
[1672563096764,40.0,9.7514,9.7453,23.7592]
[1672563096969,77.0,9.7513,9.7453,23.7592]
[1672563097305,40.0,9.7512,9.7453,23.7592]
[1672563097509,77.0,9.7511,9.7453,23.7592]
[1672563098973,40.0,9.751,9.7453,23.7592]
[1672563099195,77.0,9.7509,9.7453,23.7592]
[1672563099389,40.0,9.7508,9.7453,23.7592]
[1672563099598,77.0,9.7507,9.7453,23.7592]
[1672563099809,40.0,9.7506,9.7374,77.11]
[1672563100020,76.26453687,9.7442,9.7374,24.1959]
[1672563100231,77.04,9.746,9.7374,24.1959]
[1672563100539,20.0,9.7459,9.7375,24.1959]
[1672563100759,77.04,9.7458,9.7376,24.1959]
[1672563100973,20.0,9.7457,9.7377,24.1959]
[1672563101173,77.04,9.7456,9.7378,24.1959]
[1672563101384,20.0,9.7455,9.7378,24.1959]
[1672563101596,77.04,9.7454,9.7378,24.1959]
[1672563101805,20.0,9.7453,9.7378,24.1959]
[1672563102125,77.04,9.7452,9.7378,24.1959]
[1672563102331,40.0,9.745,9.7378,24.1959]
[1672563102535,20.0,9.7453,9.7378,24.1959]
[1672563102536,97.05,9.7449,9.7378,24.1959]
[1672563102747,77.05,9.7449,9.7378,24.1959]
[1672563102957,20.0,9.7448,9.7378,24.1959]
[1672563103279,77.05,9.7447,9.7378,24.1959]
[1672563103487,20.0,9.7446,9.7378,24.1959]
[1672563103706,77.05,9.7445,9.7378,24.1959]
[1672563103910,20.0,9.7444,9.7378,24.1959]
[1672563104122,77.05,9.7443,9.7378,24.1959]
[1672563104337,20.0,9.7442,9.7378,24.1959]
[1672563104542,77.05,9.7441,9.7378,24.1959]
[1672563104754,20.0,9.744,9.7378,24.1959]
[1672563104957,77.06,9.7439,9.7378,24.1959]
[1672563105172,20.0,9.7438,9.7378,24.1959]
[1672563105396,77.06,9.7437,9.7378,24.1959]
[1672563105589,20.0,9.7436,9.7378,24.1959]
[1672563105804,77.06,9.7435,9.7378,24.1959]
[1672563106012,20.0,9.7434,9.7378,24.1959]
[1672563106234,77.06,9.7433,9.7378,24.1959]
[1672563106553,20.0,9.7432,9.7378,24.1959]
[1672563106969,20.0,9.7453,9.7378,24.1959]
[1672563107286,77.04,9.7452,9.7378,24.1959]
[1672563107477,20.0,9.7451,9.7378,24.1959]
[1672563107688,77.05,9.745,9.7378,24.1959]
[1672563107899,20.0,9.7449,9.7378,24.1959]
[1672563108427,20.0,9.7453,9.7378,24.1959]
[1672563108639,77.04,9.7452,9.7378,24.1959]
[1672563108854,20.0,9.7451,9.7378,24.1959]
[1672563109056,77.05,9.745,9.7378,24.1959]
[1672563109283,20.0,9.7449,9.7378,24.1959]
[1672563109492,77.05,9.7448,9.7378,24.1959]
[1672563109685,20.0,9.7447,9.7378,24.1959]
[1672563110339,20.0,9.7453,9.7378,24.1959]
[1672563110544,77.04,9.7452,9.7378,24.1959]
[1672563110739,20.0,9.7451,9.7378,24.1959]
[1672563110947,77.05,9.745,9.7378,24.1959]
[1672563111156,20.0,9.7449,9.7378,24.1959]
[1672563111368,77.05,9.7448,9.7378,24.1959]
[1672563111578,20.0,9.7447,9.7378,24.1959]
[1672563111910,77.05,9.7446,9.7378,24.1959]
[1672563112103,20.0,9.7445,9.7378,24.1959]
[1672563112858,20.0,9.7453,9.7378,24.1959]
[1672563113046,77.04,9.7452,9.7378,24.1959]
[1672563113256,20.0,9.7451,9.7378,24.1959]
[1672563113467,77.05,9.745,9.7378,24.1959]
[1672563113700,20.0,9.7449,9.7378,24.1959]
[1672563113897,77.05,9.7448,9.7378,24.1959]
[1672563114110,20.0,9.7447,9.7378,24.1959]
[1672563114321,77.05,9.7446,9.7378,24.1959]
[1672563114525,20.0,9.7445,9.7378,24.1959]
[1672563115059,20.0,9.7453,9.7378,24.1959]
[1672563115274,77.04,9.7452,9.7378,24.1959]
[1672563115486,20.0,9.7451,9.7378,24.1959]
[1672563115707,77.05,9.745,9.7378,24.1959]
[1672563115904,20.0,9.7449,9.7378,24.1959]
[1672563116216,77.05,9.7448,9.7378,24.1959]
[1672563116537,20.0,9.7447,9.7378,24.1959]
[1672563116853,77.05,9.7446,9.7378,24.1959]
[1672563117163,20.0,9.7445,9.7378,24.1959]
[1672563117367,77.05,9.7444,9.7378,24.1959]
[1672563117771,20.0,9.7443,9.7378,24.1959]
[1672563117989,77.05,9.7442,9.7378,24.1959]
[1672563118301,20.0,9.7441,9.7378,24.1959]
[1672563118631,77.05,9.744,9.7378,24.1959]
[1672563118833,20.0,9.7439,9.7378,24.1959]
[1672563119032,77.06,9.7438,9.7378,24.1959]
[1672563119245,20.0,9.7437,9.7378,24.1959]
[1672563119453,77.06,9.7436,9.7378,24.1959]
[1672563119781,20.0,9.7435,9.7378,24.1959]
[1672563119990,77.06,9.7434,9.7378,24.1959]
[1672563120208,20.0,9.7433,9.7378,24.1959]
[1672563120829,20.0,9.7449,9.7378,24.1959]
[1672563121155,77.05,9.7448,9.7378,24.1959]
[1672563121371,20.0,9.7447,9.7378,24.1959]
[1672563121554,77.05,9.7446,9.7378,24.1959]
[1672563121767,20.0,9.7445,9.7378,24.1959]
[1672563121984,77.05,9.7444,9.7378,24.1959]
[1672563122196,20.0,9.7443,9.7378,24.1959]
[1672563122835,20.0,9.745,9.7379,40.0]
[1672563123690,20.0,9.745,9.7379,347.0]
[1672563126408,20.0,9.745,9.7382,40.0]
[1672563128619,77.05,9.7449,9.7382,40.0]
[1672563128832,20.0,9.7448,9.7382,40.0]
[1672563129551,20.0,9.7449,9.7382,40.0]
[1672563129882,77.05,9.7448,9.7381,40.0]
[1672563130093,20.0,9.7447,9.7381,40.0]
[1672563130410,77.05,9.7446,9.7381,40.0]
[1672563130616,20.0,9.7445,9.7381,40.0]
[1672563130833,77.05,9.7444,9.7381,40.0]
[1672563131026,20.0,9.7443,9.7381,40.0]
[1672563131447,20.0,9.7449,9.7381,40.0]
[1672563131667,77.05,9.7448,9.7381,40.0]
[1672563131872,20.0,9.7447,9.7381,40.0]
[1672563132089,77.05,9.7446,9.7381,40.0]
[1672563132285,20.0,9.7445,9.7381,40.0]
[1672563132501,77.05,9.7444,9.7381,40.0]
[1672563132711,20.0,9.7443,9.7381,40.0]
[1672563133448,20.0,9.7449,9.7381,40.0]
[1672563133657,20.0,9.745,9.7381,40.0]
[1672563135857,77.05,9.7449,9.7381,40.0]
[1672563136279,20.0,9.7448,9.7381,40.0]
[1672563136903,20.0,9.7449,9.7381,40.0]
[1672563137120,77.05,9.7448,9.7381,40.0]
[1672563137340,20.0,9.7447,9.7381,40.0]
[1672563138057,77.05,9.7446,9.7381,40.0]
[1672563138274,20.0,9.7445,9.7381,40.0]
[1672563138694,20.0,9.7445,9.7378,24.1959]
[1672563138919,20.0,9.7449,9.7378,24.1959]
[1672563139112,77.05,9.7448,9.7378,24.1959]
[1672563139323,20.0,9.7447,9.7378,24.1959]
[1672563139543,77.05,9.7446,9.7378,24.1959]
[1672563139854,20.0,9.7445,9.7378,24.1959]
[1672563140180,77.05,9.7444,9.7378,24.1959]
[1672563140393,20.0,9.7443,9.7378,24.1959]
[1672563140579,77.05,9.7442,9.7378,24.1959]
[1672563140794,20.0,9.7441,9.7378,24.1959]
[1672563141004,77.05,9.744,9.7378,24.1959]
[1672563141220,20.0,9.7439,9.7378,24.1959]
[1672563141430,77.06,9.7438,9.7378,24.1959]
[1672563141641,20.0,9.7437,9.7378,24.1959]
[1672563141844,77.06,9.7436,9.7378,24.1959]
[1672563142060,20.0,9.7435,9.7378,24.1959]
[1672563142269,77.06,9.7434,9.7378,24.1959]
[1672563142487,20.0,9.7433,9.7378,24.1959]
[1672563142688,77.06,9.7432,9.7378,24.1959]
[1672563142899,20.0,9.7431,9.7378,24.1959]
[1672563143228,77.06,9.743,9.7378,24.1959]
[1672563143436,20.0,9.7429,9.7378,24.1959]
[1672563143649,77.06,9.7428,9.7378,24.1959]
[1672563143851,20.0,9.7427,9.7378,24.1959]
[1672563144068,77.07,9.7426,9.7378,24.1959]
[1672563144274,20.0,9.7425,9.7378,24.1959]
[1672563144489,77.07,9.7424,9.7378,24.1959]
[1672563144800,20.0,9.7423,9.7378,24.1959]
[1672563144993,77.07,9.7422,9.7378,24.1959]
[1672563145204,20.0,9.7421,9.7378,24.1959]
[1672563145430,20.0,9.7423,9.7378,24.1959]
[1672563145642,77.07,9.7422,9.7378,24.1959]
[1672563145851,20.0,9.7421,9.7378,24.1959]
[1672563146484,20.0,9.7435,9.7378,24.1959]
[1672563146798,77.06,9.7434,9.7378,24.1959]
[1672563147012,20.0,9.7433,9.7378,24.1959]
[1672563147205,77.06,9.7432,9.7378,24.1959]
[1672563147537,20.0,9.7431,9.7378,24.1959]
[1672563147743,77.06,9.743,9.7378,24.1959]
[1672563147951,20.0,9.7429,9.7378,24.1959]
[1672563148166,77.06,9.7428,9.7378,24.1959]
[1672563148483,20.0,9.7427,9.7378,24.1959]
[1672563148692,77.07,9.7426,9.7378,24.1959]
[1672563148900,20.0,9.7425,9.7378,24.1959]
[1672563149114,77.07,9.7424,9.7378,24.1959]
[1672563149428,20.0,9.7423,9.7378,24.1959]
[1672563149839,20.0,9.7435,9.7378,24.1959]
[1672563150057,77.06,9.7434,9.7378,24.1959]
[1672563150253,20.0,9.7433,9.7378,24.1959]
[1672563150460,77.06,9.7432,9.7378,24.1959]
[1672563150671,20.0,9.7431,9.7378,24.1959]
[1672563150890,77.06,9.743,9.7378,24.1959]
[1672563151215,20.0,9.7429,9.7378,24.1959]
[1672563151410,77.06,9.7428,9.7378,24.1959]
[1672563151615,20.0,9.7427,9.7378,24.1959]
[1672563151831,77.07,9.7426,9.7378,24.1959]
[1672563152053,20.0,9.7425,9.7378,24.1959]
[1672563152248,77.07,9.7424,9.7378,24.1959]
[1672563152458,20.0,9.7423,9.7378,24.1959]
[1672563152873,20.0,9.7435,9.7378,24.1959]
[1672563153096,77.06,9.7434,9.7378,24.1959]
[1672563153419,20.0,9.7433,9.7378,24.1959]
[1672563154056,77.05,9.7443,9.7378,24.1959]
[1672563154057,20.0,9.7442,9.7378,24.1959]
[1672563154368,77.05,9.7441,9.7378,24.1959]
[1672563154571,20.0,9.744,9.7378,24.1959]
[1672563154781,77.06,9.7439,9.7378,24.1959]
[1672563154991,20.0,9.7438,9.7378,24.1959]
[1672563155312,77.06,9.7437,9.7378,24.1959]
[1672563155516,20.0,9.7436,9.7378,24.1959]
[1672563155733,77.06,9.7435,9.7378,24.1959]
[1672563155934,20.0,9.7434,9.7378,24.1959]
[1672563156140,77.06,9.7433,9.7378,24.1959]
[1672563156467,20.0,9.7432,9.7378,24.1959]
[1672563156678,77.06,9.7431,9.7378,24.1959]
[1672563156883,20.0,9.743,9.7378,24.1959]
[1672563157095,77.06,9.7429,9.7378,24.1959]
[1672563157315,20.0,9.7428,9.7378,24.1959]
[1672563157534,77.06,9.7427,9.7378,24.1959]
[1672563157748,20.0,9.7426,9.7378,24.1959]
[1672563157940,77.07,9.7425,9.7378,24.1959]
[1672563158151,20.0,9.7424,9.7378,24.1959]
[1672563158378,77.07,9.7423,9.7378,24.1959]
[1672563158572,20.0,9.7422,9.7378,24.1959]
[1672563159209,20.0,9.7442,9.7378,24.1959]
[1672563159430,77.05,9.7441,9.7378,24.1959]
[1672563159630,20.0,9.744,9.7378,24.1959]
[1672563159832,77.06,9.7439,9.7378,24.1959]
[1672563160046,20.0,9.7438,9.7378,24.1959]
[1672563160266,77.06,9.7437,9.7378,24.1959]
[1672563160590,20.0,9.7436,9.7378,24.1959]
[1672563160826,77.06,9.7435,9.7378,24.1959]
[1672563161009,20.0,9.7434,9.7378,24.1959]
[1672563161205,77.06,9.7433,9.7378,24.1959]
[1672563161412,20.0,9.7432,9.7378,24.1959]
[1672563162170,20.0,9.7441,9.7378,24.1959]
[1672563162480,77.05,9.744,9.7378,24.1959]
[1672563162672,20.0,9.7439,9.7378,24.1959]
[1672563162882,77.06,9.7438,9.7378,24.1959]
[1672563163246,20.0,9.7437,9.7378,24.1959]
[1672563163439,77.06,9.7436,9.7378,24.1959]
[1672563163623,20.0,9.7435,9.7378,24.1959]
[1672563163944,77.06,9.7434,9.7378,24.1959]
[1672563164134,20.0,9.7433,9.7378,24.1959]
[1672563164776,20.0,9.7441,9.7378,24.1959]
[1672563164988,77.05,9.744,9.7378,24.1959]
[1672563165203,20.0,9.7439,9.7378,24.1959]
[1672563165450,77.06,9.7438,9.7378,24.1959]
[1672563165637,20.0,9.7437,9.7378,24.1959]
[1672563165877,77.06,9.7436,9.7378,24.1959]
[1672563166045,20.0,9.7435,9.7378,24.1959]
[1672563166271,77.06,9.7434,9.7378,24.1959]
[1672563166483,20.0,9.7433,9.7378,24.1959]
[1672563166996,20.0,9.7441,9.7378,24.1959]
[1672563167241,77.05,9.744,9.7378,24.1959]
[1672563167518,20.0,9.7439,9.7378,24.1959]
[1672563167844,77.06,9.7438,9.7378,24.1959]
[1672563168031,20.0,9.7437,9.7378,24.1959]
[1672563168280,77.06,9.7436,9.7378,24.1959]
[1672563168454,20.0,9.7435,9.7378,24.1959]
[1672563168772,77.06,9.7434,9.7378,24.1959]
[1672563168986,20.0,9.7433,9.7378,24.1959]
[1672563169495,20.0,9.7441,9.7378,24.1959]
[1672563169707,77.05,9.744,9.7378,24.1959]
[1672563170041,20.0,9.7439,9.7378,24.1959]
[1672563170249,77.06,9.7438,9.7378,24.1959]
[1672563170462,20.0,9.7437,9.7378,24.1959]
[1672563170680,77.06,9.7436,9.7378,24.1959]
[1672563170985,20.0,9.7435,9.7378,24.1959]
[1672563171178,77.06,9.7434,9.7378,24.1959]
[1672563171419,20.0,9.7433,9.7378,24.1959]
[1672563171593,77.06,9.7432,9.7378,24.1959]
[1672563171805,20.0,9.7431,9.7378,24.1959]
[1672563172054,77.06,9.743,9.7378,24.1959]
[1672563172349,20.0,9.7429,9.7378,24.1959]
[1672563172544,77.06,9.7428,9.7378,24.1959]
[1672563172755,20.0,9.7427,9.7378,24.1959]
[1672563172963,77.07,9.7426,9.7378,24.1959]
[1672563173192,20.0,9.7425,9.7378,24.1959]
[1672563173926,20.0,9.7434,9.7378,24.1959]
[1672563174133,77.06,9.7433,9.7378,24.1959]
[1672563174339,20.0,9.7432,9.7378,24.1959]
[1672563174560,77.06,9.7431,9.7378,24.1959]